{"text_format":"1","workbook":"xlsx","n_sheets":3,"sheets":["Lookup table","Main Sheet","Tables"],"not_rendered":{"charts":0,"images":1,"macros":0,"external_links":0,"defined_names":1,"comments":1,"pivot_tables":0},"unopened":[],"bounds":{"document_bytes":16777216,"sheet_cells":100000,"rows_first":2000,"rows_last":500,"rows_between":2000,"halvings":0,"cell_chars":16384,"cell_head_chars":4096},"cells_cut":0,"cells_raw":0,"read":"whole","date_system":"1900"}

{"sheet":"Lookup table","index":0,"n_rows":7,"n_cols":7,"rows_kept":7,"cut":false,"hidden":true,"merged":[]}
["SEVERITY","Column1","Column2","Probability","Column3","Column4","Column5"]
[null,"1 Improbable","2 Rare","3 Possible","4 Likely","5 Frequent"]
["1 Neglible",1,2,3,4,5]
["2 Minor",2]
["3 Major",3]
["4 Critical",4]
["5 Catastrophic",5]

{"sheet":"Main Sheet","index":1,"n_rows":27,"n_cols":20,"rows_kept":27,"cut":false,"hidden":false,"merged":[[0,4,0,10],[9,2,9,9],[9,10,9,15],[9,16,9,19],[10,2,10,9],[10,10,10,15],[10,16,10,17],[1,15,1,16],[0,18,0,19]]}
[null,"RISK ASSESSMENT TITLE",null,null,"TITLE HERE!",null,null,null,null,null,null,null,null,null,null,null,null,null,"FRM-EHS-08   Issue 2.0"]
[null,null,null,null,null,null,null,null,null,null,null,null,null,null,null,"Password = Password",null,null,null,"22/11/2024"]
[null,null,"1 Improbable","2 Rare","3 Possible","4 Likely","5 Frequent",null,null,null,"Level of Risk"]
[null,"1 Neglible","Low","Low","Low","Low","Medium",null,null,null,"Low"]
[null,"2 Minor","Low","Low","Medium","Medium","High",null,null,null,"Medium"]
[null,"3 Major","Low","Medium","Medium","High","High",null,null,null,"High"]
[null,"4 Critical","Low","Medium","High","High","High"]
[null,"5 Catastrophic","Medium","High","High","High","High"]
[]
[null,null,"Potential Exposure",null,null,null,null,null,null,null,"Expected Post-Treatment Exposure",null,null,null,null,null,"Key Follow-Up Items"]
[]
[null,"Resp Mgr (RM)","Hazard","Risk","Existing Mitigation","Existing Likelihood","Existing Severity","Likelihood (hide)","Severity (Hide)","Existing Rating","Suggested Mitigation & Treatment Strategies","Projected Likelihood","Projected Severity","Likelihood (hide)","Severity (Hide)","Projected Rating","Risk Score Reduction","Responsible Manager (related to Suggested mitigations)","Action Date","Review Date"]
[null,null,null,null,null,null,null,{"$f":"HLOOKUP(F13,'Lookup table'!$B$2:$F$3,2)","v":{"$error":"#N/A"}},{"$f":"VLOOKUP(G13,'Lookup table'!$A$3:$B$7,2)","v":{"$error":"#N/A"}},{"$f":"H13*I13","v":{"$error":"#N/A"}},null,null,null,{"$f":"HLOOKUP(L13,'Lookup table'!$B$2:$F$3,2)","v":{"$error":"#N/A"}},{"$f":"VLOOKUP(M13,'Lookup table'!$A$3:$B$7,2)","v":{"$error":"#N/A"}},{"$f":"N13*O13","v":{"$error":"#N/A"}},{"$f":"J13-P13","v":{"$error":"#N/A"}}]
[null,null,null,null,null,null,null,{"$f":"HLOOKUP(F14,'Lookup table'!$B$2:$F$3,2)","v":{"$error":"#N/A"}},{"$f":"VLOOKUP(G14,'Lookup table'!$A$3:$B$7,2)","v":{"$error":"#N/A"}},{"$f":"H14*I14","v":{"$error":"#N/A"}},null,null,null,{"$f":"HLOOKUP(L14,'Lookup table'!$B$2:$F$3,2)","v":{"$error":"#N/A"}},{"$f":"VLOOKUP(M14,'Lookup table'!$A$3:$B$7,2)","v":{"$error":"#N/A"}},{"$f":"N14*O14","v":{"$error":"#N/A"}},{"$f":"J14-P14","v":{"$error":"#N/A"}}]
[null,null,null,null,null,null,null,{"$f":"HLOOKUP(F15,'Lookup table'!$B$2:$F$3,2)","v":{"$error":"#N/A"}},{"$f":"VLOOKUP(G15,'Lookup table'!$A$3:$B$7,2)","v":{"$error":"#N/A"}},{"$f":"H15*I15","v":{"$error":"#N/A"}},null,null,null,{"$f":"HLOOKUP(L15,'Lookup table'!$B$2:$F$3,2)","v":{"$error":"#N/A"}},{"$f":"VLOOKUP(M15,'Lookup table'!$A$3:$B$7,2)","v":{"$error":"#N/A"}},{"$f":"N15*O15","v":{"$error":"#N/A"}},{"$error":"#N/A"}]
[null,null,null,null,null,null,null,{"$f":"HLOOKUP(F16,'Lookup table'!$B$2:$F$3,2)","v":{"$error":"#N/A"}},{"$f":"VLOOKUP(G16,'Lookup table'!$A$3:$B$7,2)","v":{"$error":"#N/A"}},{"$error":"#N/A"},null,null,null,{"$f":"HLOOKUP(L16,'Lookup table'!$B$2:$F$3,2)","v":{"$error":"#N/A"}},{"$f":"VLOOKUP(M16,'Lookup table'!$A$3:$B$7,2)","v":{"$error":"#N/A"}},{"$error":"#N/A"},{"$error":"#N/A"}]
[null,null,null,null,null,null,null,{"$f":"HLOOKUP(F17,'Lookup table'!$B$2:$F$3,2)","v":{"$error":"#N/A"}},{"$f":"VLOOKUP(G17,'Lookup table'!$A$3:$B$7,2)","v":{"$error":"#N/A"}},{"$error":"#N/A"},null,null,null,{"$f":"HLOOKUP(L17,'Lookup table'!$B$2:$F$3,2)","v":{"$error":"#N/A"}},{"$f":"VLOOKUP(M17,'Lookup table'!$A$3:$B$7,2)","v":{"$error":"#N/A"}},{"$error":"#N/A"},{"$error":"#N/A"}]
[null,null,null,null,null,null,null,{"$f":"HLOOKUP(F18,'Lookup table'!$B$2:$F$3,2)","v":{"$error":"#N/A"}},{"$f":"VLOOKUP(G18,'Lookup table'!$A$3:$B$7,2)","v":{"$error":"#N/A"}},{"$error":"#N/A"},null,null,null,{"$f":"HLOOKUP(L18,'Lookup table'!$B$2:$F$3,2)","v":{"$error":"#N/A"}},{"$f":"VLOOKUP(M18,'Lookup table'!$A$3:$B$7,2)","v":{"$error":"#N/A"}},{"$error":"#N/A"},{"$error":"#N/A"}]
[null,null,null,null,null,null,null,{"$f":"HLOOKUP(F19,'Lookup table'!$B$2:$F$3,2)","v":{"$error":"#N/A"}},{"$f":"VLOOKUP(G19,'Lookup table'!$A$3:$B$7,2)","v":{"$error":"#N/A"}},{"$error":"#N/A"},null,null,null,{"$f":"HLOOKUP(L19,'Lookup table'!$B$2:$F$3,2)","v":{"$error":"#N/A"}},{"$f":"VLOOKUP(M19,'Lookup table'!$A$3:$B$7,2)","v":{"$error":"#N/A"}},{"$error":"#N/A"},{"$error":"#N/A"}]
[null,null,null,null,null,null,null,{"$f":"HLOOKUP(F20,'Lookup table'!$B$2:$F$3,2)","v":{"$error":"#N/A"}},{"$f":"VLOOKUP(G20,'Lookup table'!$A$3:$B$7,2)","v":{"$error":"#N/A"}},{"$error":"#N/A"},null,null,null,{"$f":"HLOOKUP(L20,'Lookup table'!$B$2:$F$3,2)","v":{"$error":"#N/A"}},{"$f":"VLOOKUP(M20,'Lookup table'!$A$3:$B$7,2)","v":{"$error":"#N/A"}},{"$error":"#N/A"},{"$error":"#N/A"}]
[null,null,null,null,null,null,null,{"$f":"HLOOKUP(F21,'Lookup table'!$B$2:$F$3,2)","v":{"$error":"#N/A"}},{"$f":"VLOOKUP(G21,'Lookup table'!$A$3:$B$7,2)","v":{"$error":"#N/A"}},{"$error":"#N/A"},null,null,null,{"$f":"HLOOKUP(L21,'Lookup table'!$B$2:$F$3,2)","v":{"$error":"#N/A"}},{"$f":"VLOOKUP(M21,'Lookup table'!$A$3:$B$7,2)","v":{"$error":"#N/A"}},{"$error":"#N/A"},{"$error":"#N/A"}]
[null,null,null,null,null,null,null,{"$f":"HLOOKUP(F22,'Lookup table'!$B$2:$F$3,2)","v":{"$error":"#N/A"}},{"$f":"VLOOKUP(G22,'Lookup table'!$A$3:$B$7,2)","v":{"$error":"#N/A"}},{"$error":"#N/A"},null,null,null,{"$f":"HLOOKUP(L22,'Lookup table'!$B$2:$F$3,2)","v":{"$error":"#N/A"}},{"$f":"VLOOKUP(M22,'Lookup table'!$A$3:$B$7,2)","v":{"$error":"#N/A"}},{"$error":"#N/A"},{"$error":"#N/A"}]
[null,null,null,null,null,null,null,{"$f":"HLOOKUP(F23,'Lookup table'!$B$2:$F$3,2)","v":{"$error":"#N/A"}},{"$f":"VLOOKUP(G23,'Lookup table'!$A$3:$B$7,2)","v":{"$error":"#N/A"}},{"$error":"#N/A"},null,null,null,{"$f":"HLOOKUP(L23,'Lookup table'!$B$2:$F$3,2)","v":{"$error":"#N/A"}},{"$f":"VLOOKUP(M23,'Lookup table'!$A$3:$B$7,2)","v":{"$error":"#N/A"}},{"$error":"#N/A"},{"$error":"#N/A"}]
[null,null,null,null,null,null,null,{"$f":"HLOOKUP(F24,'Lookup table'!$B$2:$F$3,2)","v":{"$error":"#N/A"}},{"$f":"VLOOKUP(G24,'Lookup table'!$A$3:$B$7,2)","v":{"$error":"#N/A"}},{"$f":"H24*I24","v":{"$error":"#N/A"}},null,null,null,{"$f":"HLOOKUP(L24,'Lookup table'!$B$2:$F$3,2)","v":{"$error":"#N/A"}},{"$f":"VLOOKUP(M24,'Lookup table'!$A$3:$B$7,2)","v":{"$error":"#N/A"}},{"$f":"N24*O24","v":{"$error":"#N/A"}},{"$f":"J24-P24","v":{"$error":"#N/A"}}]
[null,null,null,null,null,null,null,{"$f":"HLOOKUP(F25,'Lookup table'!$B$2:$F$3,2)","v":{"$error":"#N/A"}},{"$f":"VLOOKUP(G25,'Lookup table'!$A$3:$B$7,2)","v":{"$error":"#N/A"}},{"$error":"#N/A"},null,null,null,{"$f":"HLOOKUP(L25,'Lookup table'!$B$2:$F$3,2)","v":{"$error":"#N/A"}},{"$f":"VLOOKUP(M25,'Lookup table'!$A$3:$B$7,2)","v":{"$error":"#N/A"}},{"$error":"#N/A"},{"$error":"#N/A"}]
[null,null,null,null,null,null,null,{"$f":"HLOOKUP(F26,'Lookup table'!$B$2:$F$3,2)","v":{"$error":"#N/A"}},{"$f":"VLOOKUP(G26,'Lookup table'!$A$3:$B$7,2)","v":{"$error":"#N/A"}},{"$error":"#N/A"},null,null,null,{"$f":"HLOOKUP(L26,'Lookup table'!$B$2:$F$3,2)","v":{"$error":"#N/A"}},{"$f":"VLOOKUP(M26,'Lookup table'!$A$3:$B$7,2)","v":{"$error":"#N/A"}},{"$error":"#N/A"},{"$error":"#N/A"}]
[null,null,null,null,null,null,null,{"$f":"HLOOKUP(F27,'Lookup table'!$B$2:$F$3,2)","v":{"$error":"#N/A"}},{"$f":"VLOOKUP(G27,'Lookup table'!$A$3:$B$7,2)","v":{"$error":"#N/A"}},{"$error":"#N/A"},null,null,null,{"$f":"HLOOKUP(L27,'Lookup table'!$B$2:$F$3,2)","v":{"$error":"#N/A"}},{"$f":"VLOOKUP(M27,'Lookup table'!$A$3:$B$7,2)","v":{"$error":"#N/A"}},{"$error":"#N/A"},{"$error":"#N/A"}]

{"sheet":"Tables","index":2,"n_rows":18,"n_cols":15,"rows_kept":18,"cut":false,"hidden":false,"merged":[[5,10,5,15],[6,10,6,15],[3,10,3,15],[7,2,7,5],[4,10,4,15],[4,8,4,9],[5,8,5,9],[6,8,6,9],[3,8,3,9],[11,8,11,14],[12,8,12,9],[13,8,17,8],[10,8,10,9],[10,0,10,1],[2,2,2,5],[3,2,3,5],[4,2,4,5],[5,2,5,5],[6,2,6,5]]}
[]
["Likelihood"]
["Score","Descriptor","Likelihood description",null,null,null,null,null,"Risk Index"]
[1,"Improbable","Almost inconceivable that the event will occur",null,null,null,null,null,"Risk index",null,"Action required"]
[2,"Rare","Occurs < 10 years",null,null,null,null,null,"Negligible & Low (1 – 4)",null,"Accept as is.  Risk mitigation or review is optional."]
[3,"Possible","Occurs < 1 a year",null,null,null,null,null,"Moderate (5 – 12)",null,"Acceptable based on risk mitigation.  It may require management decision."]
[4,"Likely","Likely to occur sometimes > 1/year",null,null,null,null,null,"High (13-25)",null,"Caution.  Ensure that risk assessment has been satisfactorily completed and declared preventative controls are in place.  Senior management approval of risk assessment is required before commencement of the operation or process.  "]
[5,"Frequent","Likely to occur on a regular basis > 1/month"]
[]
["Severity"]
["Severity",null,"People","Assets","Environment","Financial",null,null,"Risk Matrix"]
[1,"Negligible","No injury","No damage","No effect","No Loss",null,null,"PROBABILITY"]
[2,"Minor","First Aid","Minor damage","Minor effect","Low loss",null,null,null,null,1,2,3,4,5]
[3,"Major","Serious injury","Substantial damage","Contained effect","Moderate Loss",null,null,"SEVERITY",1,1,2,3,4,5]
[4,"Critical","Single fatality","Major damage","Major effect (localized)","Major Loss",null,null,null,2,2,4,6,8,10]
[5,"Catastrophic","Multiple fatalities","Catastrophic damage","Massive effect (island-wide impact)","Massive Loss",null,null,null,3,3,6,9,12,15]
[null,null,null,null,null,null,null,null,null,4,4,8,12,16,10]
[null,null,null,null,null,null,null,null,null,5,5,10,15,20,25]